fUSD/lending_fUSD_20250113
["ID","MTS","AMOUNT","RATE_DAILY","PERIOD"]
[348708348,1736737835176,-500.0,9.996e-05,2]
[348708349,1736737835185,-500.0,9.996e-05,2]
[348708350,1736737835195,-1313.45,9.996e-05,2]
[348708351,1736737835205,-3419.62,9.996e-05,2]
[348708352,1736737835214,-500.0,9.996e-05,2]
[348708353,1736737835224,-500.0,9.996e-05,2]
[348708354,1736737835233,-500.0,9.996e-05,2]
[348708355,1736737835242,-500.0,9.996e-05,2]
[348708356,1736737835252,-3279.74,9.996e-05,2]
[348708357,1736737835262,-500.0,9.996e-05,2]
[348708358,1736737835272,-500.0,9.996e-05,2]
[348708359,1736737835284,-500.0,9.996e-05,2]
[348708360,1736737835293,-500.0,9.996e-05,2]
[348708361,1736737835302,-500.0,9.996e-05,2]
[348708362,1736737835311,-500.0,9.996e-05,2]
[348708363,1736737835321,-500.0,9.996e-05,2]
[348708364,1736737835331,-647.27,9.996e-05,2]
[348708365,1736737835340,-500.0,9.996e-05,2]
[348708366,1736737835349,-500.0,9.996e-05,2]
[348708367,1736737835359,-500.0,9.996e-05,2]
[348708368,1736737835368,-500.0,9.996e-05,2]
[348708369,1736737835377,-2117.31,9.996e-05,2]
[348708370,1736737835387,-959.95,9.996e-05,2]
[348708371,1736737835400,-500.0,9.996e-05,2]
[348708372,1736737835410,-1110.37,9.996e-05,2]
[348708373,1736737835420,-500.0,9.996e-05,2]
[348708374,1736737835429,-500.0,9.996e-05,2]
[348708375,1736737835439,-500.0,9.996e-05,2]
[348708376,1736737835448,-500.0,9.996e-05,2]
[348708377,1736737835457,-633.60355964,9.996e-05,2]
[348708378,1736737835466,-500.0,9.996e-05,2]
[348708379,1736737835476,-2050.52,9.996e-05,2]
[348708380,1736737835486,-1778.54,9.996e-05,2]
[348708381,1736737835495,-500.0,9.996e-05,2]
[348708382,1736737835504,-500.0,9.996e-05,2]
[348708383,1736737835514,-514.93637686,9.996e-05,2]
[348708384,1736737835523,-585.14,9.996e-05,2]
[348708385,1736737835534,-500.0,9.996e-05,2]
[348708386,1736737835543,-500.0,9.996e-05,2]
[348708387,1736737835553,-500.0,9.996e-05,2]
[348708388,1736737835565,-500.0,9.996e-05,2]
[348708389,1736737835574,-507.1404071,9.996e-05,2]
[348708390,1736737835584,-500.0,9.996e-05,2]
[348708391,1736737835593,-1948.27,9.996e-05,2]
[348708392,1736737835603,-500.0,9.996e-05,2]
[348708393,1736737835612,-506.2553554,9.996e-05,2]
[348708394,1736737835621,-505.9503486,9.996e-05,2]
[348708395,1736737835630,-500.0,9.996e-05,2]
[348708396,1736737835640,-511.37,9.996e-05,2]
[348708397,1736737835649,-503.34847692,9.996e-05,2]
[348708398,1736737835863,-500.0,9.996e-05,2]
[348708399,1736737835873,-503.59744126,9.996e-05,2]
[348708400,1736737835883,-500.0,9.996e-05,2]
[348708401,1736737835892,-500.0,9.996e-05,2]
[348708402,1736737835901,-500.0,9.996e-05,2]
[348708403,1736737835911,-500.0,9.996e-05,2]
[348708404,1736737835920,-504.91558114,9.996e-05,2]
[348708405,1736737835929,-1120.81,9.996e-05,2]
[348708406,1736737835938,-500.0,9.996e-05,2]
[348708407,1736737835947,-500.0,9.996e-05,2]
[348708408,1736737835957,-500.0,9.996e-05,2]
[348708409,1736737835966,-506.31459849,9.996e-05,2]
[348708410,1736737835975,-500.0,9.996e-05,2]
[348708411,1736737835984,-506.68254641,9.996e-05,2]
[348708412,1736737835993,-502.53285863,9.996e-05,2]
[348708413,1736737836003,-503.63900084,9.996e-05,2]
[348708414,1736737836012,-500.0,9.996e-05,2]
[348708415,1736737836022,-502.55511124,9.996e-05,2]
[348708416,1736737836033,-500.0,9.996e-05,2]
[348708417,1736737836042,-748.96,9.996e-05,2]
[348708418,1736737836052,-500.0,9.996e-05,2]
[348708419,1736737836062,-507.62629331,9.996e-05,2]
[348708420,1736737836071,-500.0,9.996e-05,2]
[348708421,1736737836081,-500.0,9.996e-05,2]
[348708422,1736737836090,-500.0,9.996e-05,2]
[348708423,1736737836099,-500.36174633,9.996e-05,2]
[348708424,1736737836109,-507.87472195,9.996e-05,2]
[348708425,1736737836119,-507.30811538,9.996e-05,2]
[348708426,1736737836128,-500.88488305,9.996e-05,2]
[348708427,1736737836138,-500.0,9.996e-05,2]
[348708428,1736737836148,-584.86505745,9.996e-05,2]
[348708429,1736737836157,-507.75124703,9.996e-05,2]
[348708430,1736737836167,-500.0,9.996e-05,2]
[348708431,1736737836176,-502.46430184,9.996e-05,2]
[348708432,1736737836185,-500.0,9.996e-05,2]
[348708433,1736737836195,-506.37810267,9.996e-05,2]
[348708434,1736737836204,-500.19399846,9.996e-05,2]
[348708435,1736737836213,-500.0,9.996e-05,2]
[348708436,1736737836222,-500.0,9.996e-05,2]
[348708437,1736737836231,-502.54824602,9.996e-05,2]
[348708438,1736737836241,-258.1238,9.997e-05,2]
[348708439,1736737836251,-502.19778368,9.997e-05,2]
[348708440,1736737836260,-504.78394909,9.997e-05,2]
[348708441,1736737836270,-500.0,9.997e-05,2]
[348708442,1736737836280,-500.0,9.997e-05,2]
[348708443,1736737836290,-500.0,9.997e-05,2]
[348708444,1736737836300,-500.0,9.997e-05,2]
[348708445,1736737836309,-500.0,9.997e-05,2]
[348708446,1736737836318,-500.0,9.997e-05,2]
[348708447,1736737836328,-500.0,9.997e-05,2]
[348708448,1736737836337,-500.0,9.997e-05,2]
[348708449,1736737836346,-500.0,9.997e-05,2]
[348708450,1736737836356,-500.0,9.997e-05,2]
[348708451,1736737836365,-200.23888333,9.997e-05,2]
[348708452,1736737836374,-500.0,9.997e-05,2]
[348708453,1736737836383,-507.2915083,9.997e-05,2]
[348708454,1736737836392,-505.10532226,9.997e-05,2]
[348708455,1736737836401,-506.8608022,9.997e-05,2]
[348708456,1736737836410,-500.0,9.997e-05,2]
[348708457,1736737836419,-500.0,9.997e-05,2]
[348708458,1736737836428,-500.0,9.997e-05,2]
[348708459,1736737836438,-501.67505584,9.997e-05,2]
[348708460,1736737836447,-503.65266573,9.997e-05,2]
[348708461,1736737836457,-505.27036916,9.997e-05,2]
[348708462,1736737836466,-503.76651953,9.997e-05,2]
[348708463,1736737836475,-501.0174001,9.997e-05,2]
[348708464,1736737836484,-509.6172584,9.997e-05,2]
[348708465,1736737836493,-500.0,9.997e-05,2]
[348708466,1736737836502,-500.0,9.997e-05,2]
[348708467,1736737836511,-502.87862916,9.997e-05,2]
[348708468,1736737836520,-503.16500725,9.997e-05,2]
[348708469,1736737836530,-549.53874491,9.997e-05,2]
[348708470,1736737836539,-500.0,9.997e-05,2]
[348708471,1736737836549,-500.0,9.997e-05,2]
[348708472,1736737836558,-503.99420942,9.997e-05,2]
[348708473,1736737836567,-500.0,9.997e-05,2]
[348708474,1736737836576,-501.84666235,9.997e-05,2]
[348708475,1736737836585,-610.97251292,9.997e-05,2]
[348708476,1736737836594,-502.61847048,9.997e-05,2]
[348708477,1736737836603,-500.0,9.997e-05,2]
[348708478,1736737836613,-402.60049348,9.997e-05,2]
[348708479,1736737836623,-500.0,9.997e-05,2]
[348708480,1736737836632,-506.16170191,9.997e-05,2]
[348708481,1736737836641,-500.0,9.997e-05,2]
[348708482,1736737836651,-510.97849833,9.997e-05,2]
[348708483,1736737836660,-504.36471595,9.997e-05,2]
[348708484,1736737836669,-500.0,9.997e-05,2]
[348708485,1736737836678,-500.0,9.997e-05,2]
[348708486,1736737836687,-500.0,9.997e-05,2]
[348708487,1736737836696,-500.0,9.997e-05,2]
[348708488,1736737836706,-501.59712416,9.997e-05,2]
[348708489,1736737836715,-502.86642767,9.997e-05,2]
[348708490,1736737836724,-500.0,9.997e-05,2]
[348708491,1736737836734,-500.0,9.997e-05,2]
[348708492,1736737836744,-500.0,9.997e-05,2]
[348708493,1736737836754,-500.0,9.997e-05,2]
[348708494,1736737836763,-507.11041122,9.997e-05,2]
[348708495,1736737836773,-500.0,9.997e-05,2]
[348708496,1736737836783,-500.0,9.997e-05,2]
[348708497,1736737836792,-503.99151265,9.997e-05,2]
[348708498,1736737836802,-500.0,9.997e-05,2]
[348708499,1736737836811,-500.0,9.997e-05,2]
[348708500,1736737836820,-500.0,9.997e-05,2]
[348708501,1736737836831,-500.0,9.997e-05,2]
[348708502,1736737836845,-500.0,9.997e-05,2]
[348708503,1736737836855,-500.0,9.997e-05,2]
[348708504,1736737836864,-500.0,9.997e-05,2]
[348708505,1736737836874,-500.51729491,9.997e-05,2]
[348708506,1736737836883,-501.35240504,9.997e-05,2]
[348708507,1736737836893,-500.0,9.997e-05,2]
[348708508,1736737836904,-502.177867,9.997e-05,2]
[348708509,1736737836914,-500.0,9.997e-05,2]
[348708510,1736737836923,-500.0,9.997e-05,2]
[348708511,1736737836932,-500.0,9.997e-05,2]
[348708512,1736737836942,-500.0,9.997e-05,2]
[348708513,1736737836952,-500.0,9.997e-05,2]
[348708514,1736737836962,-500.0,9.997e-05,2]
[348708515,1736737836971,-512.62874647,9.997e-05,2]
[348708516,1736737836980,-631.50426591,9.997e-05,2]
[348708517,1736737836994,-500.0,9.997e-05,2]
[348708518,1736737837003,-405.38339461,9.997e-05,2]
[348708519,1736737837013,-500.0,9.997e-05,2]
[348708520,1736737837023,-500.0,9.997e-05,2]
[348708521,1736737837035,-506.90400996,9.997e-05,2]
[348708522,1736737837044,-500.0,9.997e-05,2]
[348708523,1736737837053,-500.0,9.997e-05,2]
[348708524,1736737837063,-511.08038313,9.997e-05,2]
[348708525,1736737837072,-629.13936098,9.997e-05,2]
[348708526,1736737837081,-500.0,9.997e-05,2]
[348708527,1736737837091,-504.03620277,9.997e-05,2]
[348708528,1736737837101,-500.0,9.997e-05,2]
[348708529,1736737837111,-500.0,9.997e-05,2]
[348708530,1736737837121,-500.0,9.997e-05,2]
[348708531,1736737837131,-500.0,9.997e-05,2]
[348708532,1736737837140,-500.0,9.997e-05,2]
[348708533,1736737837150,-500.0,9.997e-05,2]
[348708534,1736737837160,-500.0,9.997e-05,2]
[348708535,1736737837170,-503.02517153,9.997e-05,2]
[348708536,1736737837179,-514.29693431,9.997e-05,2]
[348708537,1736737837188,-500.0,9.997e-05,2]
[348708538,1736737837198,-558.02,9.997e-05,2]
[348708539,1736737837207,-500.0,9.997e-05,2]
[348708540,1736737837217,-525.52,9.997e-05,2]
[348708541,1736737837227,-500.0,9.997e-05,2]
[348708542,1736737837237,-515.12608235,9.997e-05,2]
[348708543,1736737837247,-500.0,9.997e-05,2]
[348708544,1736737837257,-500.0,9.997e-05,2]
[348708545,1736737837268,-503.35292211,9.997e-05,2]
[348708546,1736737837281,-500.0,9.997e-05,2]
[348708547,1736737837290,-500.0,9.997e-05,2]
[348708548,1736737837300,-572.05106538,9.997e-05,2]
[348708549,1736737837310,-500.0,9.997e-05,2]
[348708550,1736737837319,-500.0,9.997e-05,2]
[348708551,1736737837329,-500.0,9.997e-05,2]
[348708552,1736737837339,-500.0,9.997e-05,2]
[348708553,1736737837349,-500.0,9.997e-05,2]
[348708554,1736737837359,-500.0,9.997e-05,2]
[348708555,1736737837369,-501.58732061,9.997e-05,2]
[348708556,1736737837379,-503.20554004,9.997e-05,2]
[348708557,1736737837388,-500.0,9.997e-05,2]
[348708558,1736737837398,-500.0,9.997e-05,2]
[348708559,1736737837407,-500.0,9.997e-05,2]
[348708560,1736737837417,-500.0,9.997e-05,2]
[348708561,1736737837427,-500.0,9.997e-05,2]
[348708562,1736737837436,-572.96,9.997e-05,2]
[348708563,1736737837446,-500.0,9.997e-05,2]
[348708564,1736737837455,-500.0,9.997e-05,2]
[348708565,1736737837465,-500.0,9.997e-05,2]
[348708566,1736737837474,-500.0,9.997e-05,2]
[348708567,1736737837484,-500.0,9.997e-05,2]
[348708568,1736737837493,-557.73,9.997e-05,2]
[348708569,1736737837503,-500.0,9.997e-05,2]
[348708570,1736737837512,-500.0,9.997e-05,2]
[348708571,1736737837522,-573.91,9.997e-05,2]
[348708572,1736737837535,-500.0,9.997e-05,2]
[348708573,1736737837544,-500.0,9.997e-05,2]
[348708574,1736737837554,-500.0,9.997e-05,2]
[348708575,1736737837564,-150.0,9.997e-05,2]
[348708576,1736737837574,-500.0,9.997e-05,2]
[348708577,1736737837584,-593.93,9.997e-05,2]
[348708578,1736737837593,-500.0,9.997e-05,2]
[348708579,1736737837603,-500.0,9.997e-05,2]
[348708580,1736737837613,-500.0,9.997e-05,2]
[348708581,1736737837622,-566.25,9.997e-05,2]
[348708582,1736737837632,-500.0,9.997e-05,2]
[348708583,1736737837642,-500.0,9.997e-05,2]
[348708584,1736737837651,-500.0,9.997e-05,2]
[348708585,1736737837661,-500.0,9.997e-05,2]
[348708586,1736737837671,-400.0,9.997e-05,2]
[348708587,1736737837680,-500.0,9.997e-05,2]
[348708588,1736737837690,-507.75413133,9.997e-05,2]
[348708589,1736737837699,-505.51227427,9.997e-05,2]
[348708590,1736737837709,-500.0,9.997e-05,2]
[348708591,1736737837719,-512.02412452,9.997e-05,2]
[348708592,1736737837728,-500.75263181,9.998e-05,2]
[348708593,1736737837738,-500.0,9.998e-05,2]
[348708594,1736737837747,-500.21635968,9.998e-05,2]
[348708595,1736737837757,-500.0,9.998e-05,2]
[348708596,1736737837767,-500.80463259,9.998e-05,2]
[348708597,1736737837777,-500.96804778,9.998e-05,2]
[348708598,1736737837789,-503.95339738,9.998e-05,2]
[348708599,1736737837799,-501.66983493,9.998e-05,2]
[348708600,1736737837809,-501.97774188,9.998e-05,2]
[348708601,1736737837818,-1109.11,9.998e-05,2]
[348708602,1736737837829,-645.74,9.998e-05,2]
[348708603,1736737837843,-679.72,9.998e-05,2]
[348708604,1736737837853,-500.0,9.998e-05,2]
[348708605,1736737837862,-910.61,9.998e-05,2]
[348708606,1736737837872,-1126.84,9.998e-05,2]
[348708607,1736737837883,-969.83,9.998e-05,2]
[348708608,1736737837893,-979.41,9.998e-05,2]
[348708609,1736737837903,-1783.62,9.998e-05,2]
[348708611,1736737837913,-2888.27,9.998e-05,2]
[348708612,1736737837922,-2243.55,9.998e-05,2]
[348708613,1736737837932,-909.64,9.998e-05,2]
[348708614,1736737837941,-630.82,9.998e-05,2]
[348708615,1736737837951,-1417.85,9.998e-05,2]
[348708616,1736737837961,-769.8,9.998e-05,2]
[348708617,1736737837971,-500.0,9.998e-05,2]
[348708618,1736737837981,-747.67,9.998e-05,2]
[348708619,1736737837991,-621.54,9.998e-05,2]
[348708620,1736737838001,-500.0,9.998e-05,2]
[348708621,1736737838011,-757.25,9.998e-05,2]
[348708622,1736737838020,-1080.98,9.998e-05,2]
[348708623,1736737838033,-500.0,9.998e-05,2]
[348708624,1736737838042,-500.0,9.998e-05,2]
[348708625,1736737838052,-610.12,9.998e-05,2]
[348708626,1736737838062,-1000.0,9.998e-05,2]
[348708627,1736737838071,-1499.46,9.998e-05,2]
[348708628,1736737838081,-500.0,9.998e-05,2]
[348708629,1736737838090,-866.53,9.998e-05,2]
[348708630,1736737838099,-1312.23,9.998e-05,2]
[348708631,1736737838109,-500.0,9.998e-05,2]
[348708632,1736737838119,-524.4,9.998e-05,2]
[348708633,1736737838128,-500.0,9.998e-05,2]
[348708634,1736737838139,-500.0,9.998e-05,2]
[348708635,1736737838148,-2103.55365852,9.999e-05,2]
[348708636,1736737838157,-500.0,9.999e-05,2]
[348708637,1736737838166,-178.894212,9.999e-05,2]
[348708638,1736737838176,-1849.38,9.999e-05,2]
[348708639,1736737838185,-203.1211,9.999e-05,2]
[348708640,1736737838195,-500.0,9.999e-05,2]
[348708641,1736737838204,-500.0,9.999e-05,2]
[348708642,1736737838214,-500.0,9.999e-05,2]
[348708643,1736737838224,-500.82,9.999e-05,2]
[348708644,1736737838234,-1957.58,9.999e-05,2]
[348708645,1736737838243,-676.43,9.999e-05,2]
[348708646,1736737838253,-500.0,9.999e-05,2]
[348708647,1736737838262,-642.65,9.999e-05,2]
[348708648,1736737838272,-782.27,9.999e-05,2]
[348708649,1736737838282,-674.81,9.999e-05,2]
[348708650,1736737838292,-702.7,9.999e-05,2]
[348708651,1736737838301,-500.0,9.999e-05,2]
[348708652,1736737838310,-500.0,9.999e-05,2]
[348708654,1736737838320,-500.0,9.999e-05,2]
[348708656,1736737838329,-1788.56,9.999e-05,2]
[348708658,1736737838338,-915.01,9.999e-05,2]
[348708660,1736737838347,-730.41,9.999e-05,2]
[348708661,1736737838357,-2188.13,9.999e-05,2]
[348708662,1736737838367,-622.83,9.999e-05,2]
[348708663,1736737838376,-2412.45,9.999e-05,2]
[348708664,1736737838386,-500.0,9.999e-05,2]
[348708665,1736737838395,-500.0,9.999e-05,2]
[348708666,1736737838404,-1265.77,9.999e-05,2]
[348708667,1736737838413,-748.03,9.999e-05,2]
[348708668,1736737838423,-1234.49,9.999e-05,2]
[348708669,1736737838432,-704.17,9.999e-05,2]
[348708670,1736737838441,-706.64,9.999e-05,2]
[348708671,1736737838451,-500.26,9.999e-05,2]
[348708673,1736737838460,-805.17,9.999e-05,2]
[348708675,1736737838469,-1038.67,9.999e-05,2]
[348708677,1736737838479,-993.0,0.0001,2]
[348708679,1736737838488,-48750.04710201,0.0001,2]
[348708706,1736737838763,-11573.87285222,0.0001,2]
[348708709,1736737838774,-63661.11299399,0.0001,2]
[348708711,1736737838788,-1041.76047077,0.0001,2]
[348708713,1736737838799,-20023.23000001,0.0001,2]
[348708715,1736737838810,-5023.54568336,0.0001,2]
[348708717,1736737838821,-786.44211909,0.0001,2]
[348708720,1736737838837,-3262.74950934,0.0001,2]
[348708722,1736737838848,-1008.0231606,0.0001,2]
[348708724,1736737838859,-9282.16531001,0.0001,2]
[348708726,1736737838870,-8301.07724787,0.0001,2]
[348708731,1736737839648,-4914.98244791,9.023e-05,2]
[348708732,1736737839657,-500.0,9.995e-05,2]
[348708733,1736737839666,-500.0,9.995e-05,2]
[348708734,1736737839674,-6038.32664102,0.0001,2]
[348708735,1736737839684,-1563.53157461,0.0001,2]
[348708736,1736737839694,-1597.86713883,0.0001,2]
[348708737,1736737839704,-438.01296227,0.0001,2]
[348708738,1736737839714,-180810.51444227,0.0001,2]
[348708739,1736737839724,-42912.03224951,0.0001,2]
[348708740,1736737839734,-18125.67397603,0.0001,2]
[348708744,1736737840073,-500.0,9.896e-05,2]
[348708746,1736737840083,-233.60120769,0.0001,2]
[348708747,1736737840094,-4709.29051433,0.0001,2]
[348708748,1736737840106,-985.98701977,0.0001,2]
[348708749,1736737840118,-2487.74406331,0.0001,2]
[348708750,1736737840128,-1366.2559367,0.0001,2]
[348708751,1736737840139,-2454.873683,0.0001,2]
[348708752,1736737840271,-303.02430069,0.0001,2]
[348708753,1736737840283,-4385.44406825,0.0001,2]
[348708754,1736737840295,-365680.71277524,0.0001,2]
[348708755,1736737840304,-160.0,0.0001,2]
[348708756,1736737840314,-200.0,0.0001,3]
[348708757,1736737840323,-200.0,0.0001,2]
[348708758,1736737840332,-514.20331527,0.0001,2]
[348708759,1736737840342,-173.0,0.0001,2]
[348708760,1736737840352,-173.0,0.0001,3]
[348708761,1736737840362,-558.41511556,0.0001,2]
[348708762,1736737840371,-2000.0,0.0001,2]
[348708763,1736737840380,-200.0,0.0001,2]
[348708764,1736737840390,-500.0,0.0001,2]
[348708765,1736737840399,-169.58536805,0.0001,2]
[348708766,1736737840408,-270845.10251297,0.0001,2]
[348708767,1736737840419,-202.82,0.0001,2]
[348708768,1736737840429,-3000.0,0.0001,2]
[348708769,1736737840438,-3000.0,0.0001,2]
[348708770,1736737840448,-1093.54125246,0.0001,2]
[348708771,1736737840457,-200.0,0.000101,2]
[348708772,1736737840466,-731.0,0.000101,2]
[348708773,1736737840476,-1000.0,0.000101,2]
[348708774,1736737840486,-462.0,0.000101,2]
[348708775,1736737840495,-3000.0,0.0001011,2]
[348708776,1736737840504,-200.0,0.0001013,2]
[348708777,1736737840514,-362.45,0.00010137,2]
[348708778,1736737840523,-182.42,0.00010137,2]
[348708779,1736737840534,-542.43,0.00010137,2]
[348708780,1736737840543,-255.0,0.00010145,2]
[348708781,1736737840552,-200.0,0.00010201,2]
[348708782,1736737840562,-764.96,0.00010202,2]
[348708783,1736737840571,-8902.49662301,0.00010218,2]
[348708784,1736737840583,-2758.22565574,0.00010218,2]
[348708785,1736737840593,-200.0,0.0001026,2]
[348708786,1736737840602,-759.61,0.00010269,2]
[348708787,1736737840611,-580.03,0.00010269,2]
[348708788,1736737840621,-1646.42,0.00010269,2]
[348708789,1736737840630,-500.0,0.00010269,2]
[348708790,1736737840639,-1024.02,0.00010269,2]
[348708791,1736737840648,-577.83,0.00010269,2]
[348708792,1736737840658,-842.63,0.00010269,2]
[348708793,1736737840667,-1543.97,0.00010269,2]
[348708794,1736737840677,-508.0831575,0.00010269,2]
[348708795,1736737840686,-607.06,0.00010269,2]
[348708796,1736737840695,-500.0,0.00010269,2]
[348708797,1736737840705,-500.0,0.00010269,2]
[348708798,1736737840714,-1116.29,0.00010269,2]
[348708799,1736737840723,-1537.0,0.00010269,2]
[348708800,1736737840732,-500.0,0.00010269,2]
[348708801,1736737840740,-825.96,0.00010269,2]
[348708802,1736737840750,-500.0,0.00010269,2]
[348708803,1736737840759,-699.66,0.00010269,2]
[348708804,1736737840768,-500.0,0.00010269,2]
[348708805,1736737840777,-333.41,0.00010269,2]
[348708806,1736737840791,-525.06410817,0.0001027,2]
[348708807,1736737840800,-500.0,0.0001027,2]
[348708808,1736737840809,-513.2669592,0.0001027,2]
[348708809,1736737840818,-579.87143117,0.0001027,2]
[348708810,1736737840828,-500.0,0.0001027,2]
[348708811,1736737840838,-251.93645783,0.0001027,2]
[348708812,1736737840852,-500.0,0.0001027,2]
[348708813,1736737840861,-514.89304326,0.0001027,2]
[348708814,1736737840871,-559.17,0.0001027,2]
[348708815,1736737840881,-500.0,0.0001027,2]
[348708816,1736737840891,-500.0,0.0001027,2]
[348708817,1736737840900,-500.0,0.0001027,2]
[348708818,1736737840909,-500.0,0.0001027,2]
[348708819,1736737840920,-500.0,0.0001027,2]
[348708820,1736737840929,-540.59527321,0.0001027,2]
[348708821,1736737840939,-500.0,0.0001027,2]
[348708822,1736737840948,-500.0,0.0001027,2]
[348708823,1736737840956,-500.0,0.0001027,2]
[348708824,1736737840966,-500.0,0.0001027,2]
[348708825,1736737840975,-500.0,0.0001027,2]
[348708826,1736737840984,-500.0,0.0001027,2]
[348708827,1736737840993,-500.0,0.0001027,2]
[348708828,1736737841003,-515.0396372,0.0001027,2]
[348708829,1736737841013,-500.0,0.0001027,2]
[348708830,1736737841022,-500.0,0.0001027,2]
[348708831,1736737841033,-512.0708093,0.0001027,2]
[348708832,1736737841042,-427.53701641,0.0001027,2]
[348708833,1736737841055,-78.22874544,0.0001027,2]
[348708834,1736737841064,-409.46695212,0.0001027,2]
[348708835,1736737841073,-22.71900924,0.0001027,2]
[348708836,1736737841085,-477.28099076,0.0001027,2]
[348708837,1736737841094,-500.0,0.0001027,2]
[348708838,1736737841104,-226.58900861,0.0001027,2]
[348708839,1736737841124,-273.41099139,0.0001027,2]
[348708840,1736737841134,-500.0,0.0001027,2]
[348708841,1736737841143,-500.0,0.0001027,2]
[348708842,1736737841152,-500.0,0.0001027,2]
[348708843,1736737841161,-601.53525675,0.0001027,2]
[348708844,1736737841170,-369.65375186,0.0001027,2]
[348708845,1736737841181,-130.34624814,0.0001027,2]
[348708846,1736737841190,-397.0703768,0.0001027,2]
[348708847,1736737841202,-114.2796232,0.0001027,2]
[348708848,1736737841211,-500.0,0.0001027,2]
[348708849,1736737841220,-500.0,0.0001027,2]
[348708850,1736737841230,-500.0,0.0001027,2]
[348708851,1736737841239,-500.0,0.0001027,2]
[348708852,1736737841248,-500.0,0.0001027,2]
[348708853,1736737841258,-500.0,0.0001027,2]
[348708854,1736737841267,-500.0,0.0001027,2]
[348708855,1736737841276,-500.0,0.0001027,2]
[348708856,1736737841287,-248.75883697,0.0001027,2]
[348708857,1736737841297,-500.0,0.0001027,2]
[348708858,1736737841306,-500.0,0.0001027,2]
[348708859,1736737841316,-500.0,0.0001027,2]
[348708860,1736737841326,-500.0,0.0001027,2]
[348708861,1736737841335,-274.94572216,0.0001027,2]
[348708862,1736737841344,-500.0,0.0001027,2]
[348708863,1736737841354,-426.16063266,0.0001027,2]
[348708864,1736737841363,-500.0,0.0001027,2]
[348708865,1736737841372,-500.0,0.0001027,2]
[348708866,1736737841381,-500.0,0.0001027,2]
[348708867,1736737841391,-500.0,0.0001027,2]
[348708868,1736737841400,-500.0,0.0001027,2]
[348708869,1736737841410,-500.0,0.0001027,2]
[348708870,1736737841420,-500.0,0.0001027,2]
[348708871,1736737841429,-500.0,0.0001027,2]
[348708872,1736737841438,-500.0,0.0001027,2]
[348708873,1736737841447,-500.0,0.0001027,2]
[348708874,1736737841456,-500.0,0.0001027,2]
[348708875,1736737841466,-473.92009198,0.0001027,2]
[348708876,1736737841478,-42.40990802,0.0001027,2]
[348708877,1736737841487,-246.19088427,0.0001027,2]
[348708910,1736737843112,-500.0,9.995e-05,2]
[348708911,1736737843122,-406.24620714,9.996e-05,2]
[348708912,1736737843134,-93.75379286,9.996e-05,2]
[348708913,1736737843143,-500.0,9.996e-05,2]
[348708915,1736737843153,-500.0,9.996e-05,2]
[348708917,1736737843162,-253.80911573,0.0001027,2]
[348708919,1736737843171,-500.0,0.0001027,2]
[348708920,1736737843181,-500.0,0.0001027,2]
[348708921,1736737843190,-500.0,0.0001027,2]
[348708922,1736737843200,-500.0,0.0001027,2]
[348708923,1736737843210,-500.0,0.0001027,2]
[348708924,1736737843219,-500.0,0.0001027,2]
[348708925,1736737843229,-500.0,0.0001027,2]
[348708926,1736737843238,-500.0,0.0001027,2]
[348708927,1736737843247,-500.0,0.0001027,2]
[348708928,1736737843256,-500.0,0.0001027,2]
[348708929,1736737843266,-500.0,0.0001027,2]
[348708930,1736737843275,-500.0,0.0001027,2]
[348708931,1736737843285,-1328.76186677,0.0001027,2]
[348708932,1736737843296,-306.06,0.0001027,2]
[348708933,1736737843308,-333.000137,0.0001027,2]
[348708934,1736737843340,-3277.13,9.995e-05,2]
[348708935,1736737843350,-1311.91799623,0.0001027,2]
[348708936,1736737843359,-500.0,0.0001027,2]